[Event "Titled Tuesday Blitz September 27 Early 2022"]
[White "Amgalantengis, Enkh-Amgalan"]
[Black "Winkels, Marcel"]
[WhiteFideId "4903536"]
[BlackFideId "1003887"]
[WhiteElo "1719"]
[BlackElo "1900"]
[Result "1-0"]
[Round "03"]
[TimeControl "180+1"]
[Date "2022.09.27"]
[WhiteClock "0:01:13"]
[BlackClock "0:00:54"]

1. d4 {[%clk 0:03:00]}  Nf6 {[%clk 0:02:58]} 2. c4 {[%clk 0:02:59]}  g6 {[%clk 0:02:58]} 3. Nc3 {[%clk 0:02:57]}  d5 {[%clk 0:02:58]} 4. Nf3 {[%clk 0:02:57]}  Bg7 {[%clk 0:02:57]} 5. Bg5 {[%clk 0:02:58]}  Ne4 {[%clk 0:02:56]} 6. cxd5 {[%clk 0:02:58]}  Nxg5 {[%clk 0:02:55]} 7. Nxg5 {[%clk 0:02:59]}  e6 {[%clk 0:02:55]} 8. Nf3 {[%clk 0:02:59]}  exd5 {[%clk 0:02:54]} 9. e3 {[%clk 0:03:00]}  O-O {[%clk 0:02:49]} 10. b4 {[%clk 0:02:59]}  c6 {[%clk 0:02:43]} 11. Bd3 {[%clk 0:02:59]}  b6 {[%clk 0:02:36]} 12. Qb3 {[%clk 0:02:52]}  Ba6 {[%clk 0:02:33]} 13. Bxa6 {[%clk 0:02:48]}  Nxa6 {[%clk 0:02:32]} 14. O-O {[%clk 0:02:48]}  Nc7 {[%clk 0:02:31]} 15. Rfd1 {[%clk 0:02:47]}  Rc8 {[%clk 0:02:26]} 16. Rac1 {[%clk 0:02:44]}  Ne8 {[%clk 0:02:24]} 17. b5 {[%clk 0:02:43]}  Nf6 {[%clk 0:02:15]} 18. bxc6 {[%clk 0:02:32]}  Rxc6 {[%clk 0:02:13]} 19. Ne5 {[%clk 0:02:28]}  Rc8 {[%clk 0:02:10]} 20. Rc2 {[%clk 0:02:09]}  Qd6 {[%clk 0:02:01]} 21. Rdc1 {[%clk 0:02:07]}  a6 {[%clk 0:01:52]} 22. Nxd5 {[%clk 0:01:57]}  Rxc2 {[%clk 0:01:50]} 23. Nxf6+ {[%clk 0:01:56]}  Bxf6 {[%clk 0:01:49]} 24. Qxc2 {[%clk 0:01:54]}  Bxe5 {[%clk 0:01:48]} 25. dxe5 {[%clk 0:01:54]}  Qxe5 {[%clk 0:01:48]} 26. h3 {[%clk 0:01:48]}  Rd8 {[%clk 0:01:42]} 27. Rd1 {[%clk 0:01:40]}  Rxd1+ {[%clk 0:01:39]} 28. Qxd1 {[%clk 0:01:41]}  Qc5 {[%clk 0:01:31]} 29. Qd3 {[%clk 0:01:33]}  b5 {[%clk 0:01:26]} 30. e4 {[%clk 0:01:32]}  a5 {[%clk 0:01:25]} 31. Qd8+ {[%clk 0:01:30]}  Kg7 {[%clk 0:01:24]} 32. Qxa5 {[%clk 0:01:30]}  Qc1+ {[%clk 0:01:22]} 33. Kh2 {[%clk 0:01:30]}  Qf4+ {[%clk 0:01:22]} 34. Kg1 {[%clk 0:01:29]}  Qc1+ {[%clk 0:01:22]} 35. Kh2 {[%clk 0:01:27]}  Qf4+ {[%clk 0:01:21]} 36. Kh1 {[%clk 0:01:28]}  Qxf2 {[%clk 0:01:11]} 37. Qxb5 {[%clk 0:01:23]}  Qe1+ {[%clk 0:01:11]} 38. Kh2 {[%clk 0:01:23]}  Qxe4 {[%clk 0:01:10]} 39. a4 {[%clk 0:01:19]}  Qf4+ {[%clk 0:01:10]} 40. Kg1 {[%clk 0:01:19]}  Qc1+ {[%clk 0:01:09]} 41. Kf2 {[%clk 0:01:19]}  Qd2+ {[%clk 0:01:08]} 42. Kf3 {[%clk 0:01:17]}  Qc3+ {[%clk 0:01:07]} 43. Ke4 {[%clk 0:01:15]}  Qg3 {[%clk 0:01:01]} 44. Qe5+ {[%clk 0:01:12]}  Qxe5+ {[%clk 0:00:55]} 45. Kxe5 {[%clk 0:01:12]}  Kf8 {[%clk 0:00:55]} 46. a5 {[%clk 0:01:12]}  Ke8 {[%clk 0:00:55]} 47. a6 {[%clk 0:01:12]}  Kd7 {[%clk 0:00:54]} 48. a7 {[%clk 0:01:13]} 1-0


[Site "https://www.chess.com"]

[Event "Titled Tuesday Blitz September 27 Early 2022"]
[White "Antonova, Nadezhda"]
[Black "Pourkashiyan, Atousa"]
[WhiteFideId "14700182"]
[BlackFideId "12502014"]
[WhiteElo "1805"]
[BlackElo "2247"]
[Result "1-0"]
[Round "03"]
[TimeControl "180+1"]
[Date "2022.09.27"]
[WhiteClock "0:00:15"]
[BlackClock "0:00:02"]

1. Nf3 {[%clk 0:02:59]}  d5 {[%clk 0:02:50]} 2. b3 {[%clk 0:02:59]}  Nf6 {[%clk 0:02:49]} 3. Bb2 {[%clk 0:03:00]}  Bg4 {[%clk 0:02:49]} 4. e3 {[%clk 0:02:56]}  e6 {[%clk 0:02:49]} 5. h3 {[%clk 0:02:56]}  Bh5 {[%clk 0:02:42]} 6. g4 {[%clk 0:02:55]}  Bg6 {[%clk 0:02:34]} 7. d3 {[%clk 0:02:54]}  c5 {[%clk 0:01:45]} 8. Nbd2 {[%clk 0:02:49]}  Nc6 {[%clk 0:01:44]} 9. Nh4 {[%clk 0:02:48]}  Be7 {[%clk 0:01:43]} 10. Nxg6 {[%clk 0:02:36]}  hxg6 {[%clk 0:01:44]} 11. Bg2 {[%clk 0:02:26]}  e5 {[%clk 0:01:44]} 12. Qe2 {[%clk 0:02:17]}  Qd6 {[%clk 0:01:42]} 13. e4 {[%clk 0:02:11]}  Nd4 {[%clk 0:01:28]} 14. Qd1 {[%clk 0:02:07]}  O-O-O {[%clk 0:01:11]} 15. c3 {[%clk 0:01:59]}  Ne6 {[%clk 0:01:09]} 16. exd5 {[%clk 0:01:38]}  Nf4 {[%clk 0:01:08]} 17. Be4 {[%clk 0:01:35]}  N6xd5 {[%clk 0:00:58]} 18. Nc4 {[%clk 0:01:34]}  Qe6 {[%clk 0:00:49]} 19. Qc2 {[%clk 0:01:25]}  f5 {[%clk 0:00:50]} 20. Bxd5 {[%clk 0:01:25]}  Rxd5 {[%clk 0:00:39]} 21. O-O-O {[%clk 0:01:25]}  Rxh3 {[%clk 0:00:36]} 22. Rxh3 {[%clk 0:01:24]}  Nxh3 {[%clk 0:00:37]} 23. gxf5 {[%clk 0:01:24]}  gxf5 {[%clk 0:00:37]} 24. Ne3 {[%clk 0:01:24]}  Rd8 {[%clk 0:00:36]} 25. d4 {[%clk 0:01:21]}  e4 {[%clk 0:00:33]} 26. d5 {[%clk 0:01:18]}  Qf7 {[%clk 0:00:15]} 27. c4 {[%clk 0:01:15]}  Nf4 {[%clk 0:00:13]} 28. Rg1 {[%clk 0:01:00]}  Nd3+ {[%clk 0:00:11]} 29. Kb1 {[%clk 0:00:54]}  Nxb2 {[%clk 0:00:11]} 30. Qxb2 {[%clk 0:00:53]}  Bf6 {[%clk 0:00:12]} 31. Qa3 {[%clk 0:00:50]}  b6 {[%clk 0:00:09]} 32. Nxf5 {[%clk 0:00:47]}  Bd4 {[%clk 0:00:09]} 33. Nxd4 {[%clk 0:00:42]}  cxd4 {[%clk 0:00:10]} 34. Qb2 {[%clk 0:00:33]}  e3 {[%clk 0:00:03]} 35. fxe3 {[%clk 0:00:28]}  dxe3 {[%clk 0:00:04]} 36. Qxg7 {[%clk 0:00:25]}  Qf5+ {[%clk 0:00:04]} 37. Kb2 {[%clk 0:00:23]}  e2 {[%clk 0:00:03]} 38. Qxa7 {[%clk 0:00:17]}  Qe5+ {[%clk 0:00:03]} 39. Ka3 {[%clk 0:00:16]}  e1=Q {[%clk 0:00:02]} 40. Qa8+ {[%clk 0:00:15]} 1-0


[Site "https://www.chess.com"]

[Event "Titled Tuesday Blitz September 27 Early 2022"]
[White "Azadaliyev, Jahandar"]
[Black "Alexikov, Alexander"]
[WhiteFideId "13425811"]
[BlackFideId "14103958"]
[WhiteElo "1810"]
[BlackElo "2222"]
[Result "1-0"]
[Round "03"]
[TimeControl "180+1"]
[Date "2022.09.27"]
[WhiteClock "0:00:09"]
[BlackClock "0:00:09"]

1. e4 {[%clk 0:03:00]}  c5 {[%clk 0:02:58]} 2. Nf3 {[%clk 0:03:00]}  d6 {[%clk 0:02:58]} 3. d4 {[%clk 0:03:00]}  cxd4 {[%clk 0:02:57]} 4. Nxd4 {[%clk 0:03:01]}  Nf6 {[%clk 0:02:56]} 5. Nc3 {[%clk 0:03:02]}  a6 {[%clk 0:02:57]} 6. Bg5 {[%clk 0:03:01]}  e6 {[%clk 0:02:56]} 7. f4 {[%clk 0:02:57]}  Nbd7 {[%clk 0:02:53]} 8. Qf3 {[%clk 0:02:54]}  Qc7 {[%clk 0:02:52]} 9. O-O-O {[%clk 0:02:53]}  Be7 {[%clk 0:02:52]} 10. Be2 {[%clk 0:02:42]}  O-O {[%clk 0:02:50]} 11. Rhe1 {[%clk 0:02:41]}  Re8 {[%clk 0:02:44]} 12. Qh3 {[%clk 0:02:40]}  g6 {[%clk 0:02:30]} 13. Bh6 {[%clk 0:02:08]}  Bf8 {[%clk 0:02:14]} 14. Bg5 {[%clk 0:01:54]}  Bg7 {[%clk 0:02:09]} 15. Qh4 {[%clk 0:01:41]}  e5 {[%clk 0:01:54]} 16. Nf3 {[%clk 0:01:34]}  b5 {[%clk 0:01:50]} 17. a3 {[%clk 0:01:32]}  Bb7 {[%clk 0:01:48]} 18. Nd2 {[%clk 0:01:02]}  exf4 {[%clk 0:01:35]} 19. Qxf4 {[%clk 0:00:58]}  Re6 {[%clk 0:01:16]} 20. Rf1 {[%clk 0:00:36]}  Ne5 {[%clk 0:01:10]} 21. Nf3 {[%clk 0:00:34]}  Nxf3 {[%clk 0:00:32]} 22. Bxf3 {[%clk 0:00:30]}  Rc8 {[%clk 0:00:27]} 23. Rd2 {[%clk 0:00:29]}  a5 {[%clk 0:00:19]} 24. Nxb5 {[%clk 0:00:18]}  Qc4 {[%clk 0:00:18]} 25. Be2 {[%clk 0:00:16]}  Qa2 {[%clk 0:00:18]} 26. Rd4 {[%clk 0:00:09]}  Qa1+ {[%clk 0:00:09]} 27. Kd2 {[%clk 0:00:09]}  Qxb2 {[%clk 0:00:09]} 28. Bd3 {[%clk 0:00:09]} 1-0


[Site "https://www.chess.com"]

[Event "Titled Tuesday Blitz September 27 Early 2022"]
[White "Balabayeva, Xeniya"]
[Black "Rostovtsev, Dmitry"]
[WhiteFideId "13719688"]
[BlackFideId "34278320"]
[WhiteElo "1895"]
[BlackElo "2313"]
[Result "0-1"]
[Round "03"]
[TimeControl "180+1"]
[Date "2022.09.27"]
[WhiteClock "0:00:06"]
[BlackClock "0:01:46"]

1. e4 {[%clk 0:03:00]}  e5 {[%clk 0:02:58]} 2. Nf3 {[%clk 0:02:59]}  Nc6 {[%clk 0:02:59]} 3. Bb5 {[%clk 0:02:58]}  a6 {[%clk 0:02:49]} 4. Ba4 {[%clk 0:02:58]}  Nf6 {[%clk 0:02:50]} 5. O-O {[%clk 0:02:56]}  Be7 {[%clk 0:02:48]} 6. Bxc6 {[%clk 0:02:54]}  dxc6 {[%clk 0:02:49]} 7. d3 {[%clk 0:02:54]}  Nd7 {[%clk 0:02:49]} 8. Nbd2 {[%clk 0:02:51]}  O-O {[%clk 0:02:28]} 9. Nc4 {[%clk 0:02:47]}  f6 {[%clk 0:02:28]} 10. Nh4 {[%clk 0:02:35]}  Nc5 {[%clk 0:02:13]} 11. Be3 {[%clk 0:02:28]}  Re8 {[%clk 0:02:11]} 12. Qe2 {[%clk 0:02:01]}  Be6 {[%clk 0:02:11]} 13. Na5 {[%clk 0:01:56]}  b6 {[%clk 0:02:05]} 14. Nxc6 {[%clk 0:01:53]}  Qd7 {[%clk 0:02:05]} 15. Nxe7+ {[%clk 0:01:52]}  Qxe7 {[%clk 0:02:06]} 16. Rad1 {[%clk 0:01:49]}  a5 {[%clk 0:02:05]} 17. b3 {[%clk 0:01:45]}  a4 {[%clk 0:02:04]} 18. b4 {[%clk 0:01:44]}  Nb7 {[%clk 0:02:04]} 19. a3 {[%clk 0:01:43]}  Nd6 {[%clk 0:02:04]} 20. c4 {[%clk 0:01:42]}  Qf7 {[%clk 0:02:04]} 21. f4 {[%clk 0:01:37]}  exf4 {[%clk 0:02:03]} 22. Bxf4 {[%clk 0:01:36]}  Nxc4 {[%clk 0:02:04]} 23. dxc4 {[%clk 0:01:14]}  Bxc4 {[%clk 0:02:05]} 24. Qe3 {[%clk 0:01:13]}  Bxf1 {[%clk 0:02:04]} 25. Rxf1 {[%clk 0:01:14]}  Qb3 {[%clk 0:01:58]} 26. Qe2 {[%clk 0:01:05]}  Qxa3 {[%clk 0:01:53]} 27. Nf5 {[%clk 0:00:59]}  Qxb4 {[%clk 0:01:52]} 28. Qg4 {[%clk 0:00:27]}  Qf8 {[%clk 0:01:52]} 29. Bh6 {[%clk 0:00:25]}  Re7 {[%clk 0:01:53]} 30. Nxe7+ {[%clk 0:00:21]}  Qxe7 {[%clk 0:01:54]} 31. Be3 {[%clk 0:00:18]}  a3 {[%clk 0:01:53]} 32. Bd4 {[%clk 0:00:18]}  a2 {[%clk 0:01:52]} 33. h3 {[%clk 0:00:17]}  Ra4 {[%clk 0:01:50]} 34. Qc8+ {[%clk 0:00:16]}  Kf7 {[%clk 0:01:49]} 35. Ba1 {[%clk 0:00:09]}  Rxe4 {[%clk 0:01:48]} 36. Qb7 {[%clk 0:00:09]}  Re2 {[%clk 0:01:47]} 37. Qd5+ {[%clk 0:00:09]}  Qe6 {[%clk 0:01:48]} 38. Qd3 {[%clk 0:00:06]}  Qe4 {[%clk 0:01:46]} 39. Qc3 {[%clk 0:00:06]}  Qxg2# {[%clk 0:01:46]} 0-1


[Site "https://www.chess.com"]

[Event "Titled Tuesday Blitz September 27 Early 2022"]
[White "Barash, Anton"]
[Black "Sanchez Alvares, Kelvin Antonio"]
[WhiteFideId "30935229"]
[BlackFideId "3906680"]
[WhiteElo "2250"]
[BlackElo "2189"]
[Result "0-1"]
[Round "03"]
[TimeControl "180+1"]
[Date "2022.09.27"]
[WhiteClock "0:00:03"]
[BlackClock "0:01:19"]

1. e4 {[%clk 0:02:59]}  e5 {[%clk 0:02:58]} 2. Nc3 {[%clk 0:02:59]}  Nc6 {[%clk 0:02:57]} 3. f4 {[%clk 0:02:59]}  exf4 {[%clk 0:02:56]} 4. Nf3 {[%clk 0:02:58]}  g5 {[%clk 0:02:56]} 5. h4 {[%clk 0:02:58]}  g4 {[%clk 0:02:53]} 6. Ng5 {[%clk 0:02:59]}  h6 {[%clk 0:02:53]} 7. Nxf7 {[%clk 0:03:00]}  Kxf7 {[%clk 0:02:54]} 8. d4 {[%clk 0:03:00]}  d6 {[%clk 0:02:47]} 9. Bxf4 {[%clk 0:02:56]}  Kg7 {[%clk 0:02:47]} 10. Qd2 {[%clk 0:02:48]}  Nf6 {[%clk 0:02:32]} 11. O-O-O {[%clk 0:02:43]}  Nh5 {[%clk 0:02:30]} 12. Nd5 {[%clk 0:02:20]}  Be6 {[%clk 0:02:23]} 13. Be2 {[%clk 0:02:07]}  Ne7 {[%clk 0:02:20]} 14. Rhf1 {[%clk 0:01:26]}  Ng6 {[%clk 0:02:11]} 15. Be3 {[%clk 0:01:07]}  Be7 {[%clk 0:02:02]} 16. Nxe7 {[%clk 0:00:58]}  Qxe7 {[%clk 0:02:00]} 17. d5 {[%clk 0:00:54]}  Bd7 {[%clk 0:01:58]} 18. Bd4+ {[%clk 0:00:38]}  Ne5 {[%clk 0:01:56]} 19. Qc3 {[%clk 0:00:35]}  Rac8 {[%clk 0:01:52]} 20. Rf2 {[%clk 0:00:21]}  c5 {[%clk 0:01:40]} 21. dxc6 {[%clk 0:00:16]}  Rxc6 {[%clk 0:01:40]} 22. Bxe5+ {[%clk 0:00:10]}  dxe5 {[%clk 0:01:39]} 23. Rxd7 {[%clk 0:00:09]}  Qxd7 {[%clk 0:01:38]} 24. Qxe5+ {[%clk 0:00:10]}  Nf6 {[%clk 0:01:37]} 25. Bb5 {[%clk 0:00:06]}  Qe6 {[%clk 0:01:28]} 26. Qd4 {[%clk 0:00:04]}  Rd6 {[%clk 0:01:24]} 27. Qxa7 {[%clk 0:00:05]}  Qxe4 {[%clk 0:01:21]} 28. a3 {[%clk 0:00:03]}  Qe1# {[%clk 0:01:19]} 0-1


[Site "https://www.chess.com"]

[Event "Titled Tuesday Blitz September 27 Early 2022"]
[White "Bartel, Michal"]
[Black "Mikhailovsky, Vladimir"]
[WhiteFideId "1119257"]
[BlackFideId "34105414"]
[WhiteElo "2274"]
[BlackElo "2297"]
[Result "0-1"]
[Round "03"]
[TimeControl "180+1"]
[Date "2022.09.27"]
[WhiteClock "0:00:26"]
[BlackClock "0:00:14"]

1. e4 {[%clk 0:03:00]}  e5 {[%clk 0:02:51]} 2. Nf3 {[%clk 0:03:00]}  d5 {[%clk 0:02:51]} 3. Nxe5 {[%clk 0:02:58]}  Bd6 {[%clk 0:02:51]} 4. d4 {[%clk 0:02:58]}  dxe4 {[%clk 0:02:51]} 5. Qe2 {[%clk 0:02:57]}  Nf6 {[%clk 0:02:35]} 6. Nc3 {[%clk 0:02:52]}  O-O {[%clk 0:02:25]} 7. Bg5 {[%clk 0:02:40]}  Bb4 {[%clk 0:02:09]} 8. Qc4 {[%clk 0:02:32]}  Bxc3+ {[%clk 0:02:03]} 9. Qxc3 {[%clk 0:02:33]}  h6 {[%clk 0:02:01]} 10. Bh4 {[%clk 0:02:30]}  Qd6 {[%clk 0:01:50]} 11. Nc4 {[%clk 0:02:14]}  Qe6 {[%clk 0:01:46]} 12. Ne3 {[%clk 0:02:12]}  Nd5 {[%clk 0:01:44]} 13. Nxd5 {[%clk 0:02:11]}  Qxd5 {[%clk 0:01:44]} 14. Bc4 {[%clk 0:02:10]}  Qh5 {[%clk 0:01:17]} 15. Bg3 {[%clk 0:02:09]}  c6 {[%clk 0:01:18]} 16. O-O {[%clk 0:02:01]}  Nd7 {[%clk 0:01:16]} 17. Rfe1 {[%clk 0:02:00]}  Nb6 {[%clk 0:01:14]} 18. Rxe4 {[%clk 0:01:56]}  Nxc4 {[%clk 0:01:04]} 19. Qxc4 {[%clk 0:01:57]}  Be6 {[%clk 0:01:05]} 20. Qe2 {[%clk 0:01:55]}  Qg6 {[%clk 0:01:02]} 21. Re1 {[%clk 0:01:51]}  Bf5 {[%clk 0:01:00]} 22. Re7 {[%clk 0:01:49]}  Bxc2 {[%clk 0:01:00]} 23. Rxb7 {[%clk 0:01:50]}  Rad8 {[%clk 0:00:57]} 24. Be5 {[%clk 0:01:40]}  f6 {[%clk 0:00:39]} 25. Qc4+ {[%clk 0:01:35]}  Kh7 {[%clk 0:00:39]} 26. Bg3 {[%clk 0:01:34]}  Rfe8 {[%clk 0:00:30]} 27. Rc1 {[%clk 0:01:30]}  Bd3 {[%clk 0:00:27]} 28. Qc3 {[%clk 0:01:24]}  a6 {[%clk 0:00:21]} 29. h4 {[%clk 0:01:24]}  h5 {[%clk 0:00:20]} 30. Rd1 {[%clk 0:01:17]}  Be4 {[%clk 0:00:20]} 31. Qc4 {[%clk 0:01:10]}  a5 {[%clk 0:00:16]} 32. Ra7 {[%clk 0:01:06]}  Bd5 {[%clk 0:00:16]} 33. Qa4 {[%clk 0:01:02]}  Re4 {[%clk 0:00:15]} 34. Rxa5 {[%clk 0:01:01]}  Rde8 {[%clk 0:00:10]} 35. Qb4 {[%clk 0:00:58]}  Re2 {[%clk 0:00:08]} 36. Rxd5 {[%clk 0:00:51]}  cxd5 {[%clk 0:00:07]} 37. a4 {[%clk 0:00:51]}  Qc2 {[%clk 0:00:06]} 38. Ra1 {[%clk 0:00:46]}  Qxb2 {[%clk 0:00:06]} 39. Qxb2 {[%clk 0:00:46]}  Rxb2 {[%clk 0:00:07]} 40. a5 {[%clk 0:00:46]}  Ra8 {[%clk 0:00:08]} 41. Bd6 {[%clk 0:00:44]}  Rb5 {[%clk 0:00:03]} 42. Bc7 {[%clk 0:00:43]}  Rb7 {[%clk 0:00:03]} 43. Bd6 {[%clk 0:00:43]}  Kg6 {[%clk 0:00:02]} 44. Ra3 {[%clk 0:00:42]}  Rb5 {[%clk 0:00:02]} 45. Bc7 {[%clk 0:00:38]}  Rb1+ {[%clk 0:00:03]} 46. Kh2 {[%clk 0:00:38]}  Rb7 {[%clk 0:00:04]} 47. Bd6 {[%clk 0:00:38]}  Rba7 {[%clk 0:00:04]} 48. Bb4 {[%clk 0:00:37]}  Ra6 {[%clk 0:00:03]} 49. Kg3 {[%clk 0:00:35]}  Rc8 {[%clk 0:00:04]} 50. Bc5 {[%clk 0:00:34]}  Rca8 {[%clk 0:00:04]} 51. Bb4 {[%clk 0:00:34]}  Rb8 {[%clk 0:00:04]} 52. Bc5 {[%clk 0:00:34]}  Rb5 {[%clk 0:00:05]} 53. Re3 {[%clk 0:00:28]}  Raxa5 {[%clk 0:00:03]} 54. Re7 {[%clk 0:00:29]}  Rb3+ {[%clk 0:00:04]} 55. f3 {[%clk 0:00:28]}  Rab5 {[%clk 0:00:04]} 56. Rd7 {[%clk 0:00:28]}  Rb7 {[%clk 0:00:05]} 57. Rxd5 {[%clk 0:00:27]}  Rb2 {[%clk 0:00:05]} 58. Rd8 {[%clk 0:00:27]}  Rc2 {[%clk 0:00:05]} 59. Bf8 {[%clk 0:00:17]}  Kf7 {[%clk 0:00:04]} 60. Bc5 {[%clk 0:00:17]}  Rbb2 {[%clk 0:00:05]} 61. Rd7+ {[%clk 0:00:17]}  Kg6 {[%clk 0:00:05]} 62. Kf4 {[%clk 0:00:18]}  Rxg2 {[%clk 0:00:05]} 63. Bf8 {[%clk 0:00:18]}  Kh7 {[%clk 0:00:06]} 64. d5 {[%clk 0:00:18]}  Rbd2 {[%clk 0:00:06]} 65. Ke4 {[%clk 0:00:18]}  Rge2+ {[%clk 0:00:06]} 66. Kf5 {[%clk 0:00:18]}  Rg2 {[%clk 0:00:07]} 67. d6 {[%clk 0:00:19]}  Rd5+ {[%clk 0:00:05]} 68. Ke6 {[%clk 0:00:19]}  Rd3 {[%clk 0:00:05]} 69. Rd8 {[%clk 0:00:17]}  Rxf3 {[%clk 0:00:05]} 70. d7 {[%clk 0:00:17]}  Re2+ {[%clk 0:00:05]} 71. Kf7 {[%clk 0:00:17]}  Rd3 {[%clk 0:00:06]} 72. Be7 {[%clk 0:00:17]}  Red2 {[%clk 0:00:04]} 73. Ke8 {[%clk 0:00:17]}  f5 {[%clk 0:00:04]} 74. Bg5 {[%clk 0:00:17]}  Re2+ {[%clk 0:00:04]} 75. Kf7 {[%clk 0:00:17]}  Re4 {[%clk 0:00:05]} 76. Be7 {[%clk 0:00:16]}  f4 {[%clk 0:00:04]} 77. Bg5 {[%clk 0:00:16]}  f3 {[%clk 0:00:04]} 78. Re8 {[%clk 0:00:16]}  Rxd7+ {[%clk 0:00:04]} 79. Re7 {[%clk 0:00:16]}  Rexe7+ {[%clk 0:00:04]} 80. Kf8 {[%clk 0:00:17]}  Rf7+ {[%clk 0:00:04]} 81. Ke8 {[%clk 0:00:17]}  f2 {[%clk 0:00:05]} 82. Bf6 {[%clk 0:00:17]}  f1=Q {[%clk 0:00:06]} 83. Bxg7 {[%clk 0:00:18]}  Rde7+ {[%clk 0:00:05]} 84. Kd8 {[%clk 0:00:18]}  Qd3+ {[%clk 0:00:06]} 85. Bd4 {[%clk 0:00:18]}  Qxd4+ {[%clk 0:00:07]} 86. Kc8 {[%clk 0:00:19]}  Qd7+ {[%clk 0:00:07]} 87. Kb8 {[%clk 0:00:20]}  Kg6 {[%clk 0:00:07]} 88. Ka8 {[%clk 0:00:21]}  Kf6 {[%clk 0:00:07]} 89. Kb8 {[%clk 0:00:21]}  Kf5 {[%clk 0:00:08]} 90. Ka8 {[%clk 0:00:22]}  Kg4 {[%clk 0:00:09]} 91. Kb8 {[%clk 0:00:23]}  Kh3 {[%clk 0:00:10]} 92. Ka8 {[%clk 0:00:24]}  Kh2 {[%clk 0:00:11]} 93. Kb8 {[%clk 0:00:24]}  Kh1 {[%clk 0:00:12]} 94. Ka8 {[%clk 0:00:25]}  Kg1 {[%clk 0:00:13]} 95. Kb8 {[%clk 0:00:26]}  Kf1 {[%clk 0:00:14]} 0-1


[Site "https://www.chess.com"]

[Event "Titled Tuesday Blitz September 27 Early 2022"]
[White "Baskakov, Egor"]
[Black "Fiorito, Joaquin"]
[WhiteFideId "24197866"]
[BlackFideId "180173"]
[WhiteElo "2211"]
[BlackElo "1758"]
[Result "1-0"]
[Round "03"]
[TimeControl "180+1"]
[Date "2022.09.27"]
[WhiteClock "0:00:59"]
[BlackClock "0:00:07"]

1. e4 {[%clk 0:03:00]}  c6 {[%clk 0:02:59]} 2. d4 {[%clk 0:03:00]}  d5 {[%clk 0:02:59]} 3. e5 {[%clk 0:03:00]}  Bf5 {[%clk 0:02:59]} 4. Ne2 {[%clk 0:03:00]}  e6 {[%clk 0:02:55]} 5. Ng3 {[%clk 0:03:01]}  Bg6 {[%clk 0:02:55]} 6. h4 {[%clk 0:03:01]}  h6 {[%clk 0:02:54]} 7. h5 {[%clk 0:03:01]}  Bh7 {[%clk 0:02:55]} 8. Bd3 {[%clk 0:03:02]}  Bxd3 {[%clk 0:02:55]} 9. cxd3 {[%clk 0:03:03]}  Qb6 {[%clk 0:02:46]} 10. Be3 {[%clk 0:02:53]}  Nd7 {[%clk 0:02:07]} 11. O-O {[%clk 0:02:48]}  Qxb2 {[%clk 0:02:02]} 12. Nd2 {[%clk 0:02:46]}  Qb6 {[%clk 0:02:00]} 13. Rb1 {[%clk 0:02:45]}  Qc7 {[%clk 0:01:56]} 14. Qg4 {[%clk 0:02:43]}  O-O-O {[%clk 0:01:24]} 15. f4 {[%clk 0:02:42]}  f5 {[%clk 0:01:23]} 16. Qg6 {[%clk 0:02:40]}  Ne7 {[%clk 0:01:12]} 17. Qxe6 {[%clk 0:02:40]}  Kb8 {[%clk 0:01:10]} 18. Nxf5 {[%clk 0:02:37]}  Nxf5 {[%clk 0:01:04]} 19. Qxf5 {[%clk 0:02:38]}  Qa5 {[%clk 0:00:58]} 20. Nb3 {[%clk 0:02:36]}  Qxa2 {[%clk 0:00:57]} 21. Rfc1 {[%clk 0:02:36]}  Qe2 {[%clk 0:00:53]} 22. Bf2 {[%clk 0:02:34]}  Bb4 {[%clk 0:00:49]} 23. Qh3 {[%clk 0:02:18]}  Rhf8 {[%clk 0:00:46]} 24. Be1 {[%clk 0:02:06]}  Rxf4 {[%clk 0:00:33]} 25. Bxb4 {[%clk 0:02:03]}  Qf2+ {[%clk 0:00:33]} 26. Kh2 {[%clk 0:01:59]}  Rh4 {[%clk 0:00:33]} 27. Rf1 {[%clk 0:01:43]}  Rxh3+ {[%clk 0:00:33]} 28. Kxh3 {[%clk 0:01:43]}  Qe3+ {[%clk 0:00:34]} 29. Kh2 {[%clk 0:01:42]}  Qg5 {[%clk 0:00:31]} 30. Bd6+ {[%clk 0:01:41]}  Ka8 {[%clk 0:00:31]} 31. Nc5 {[%clk 0:01:36]}  Nb6 {[%clk 0:00:29]} 32. Ne6 {[%clk 0:01:30]}  Qxh5+ {[%clk 0:00:27]} 33. Kg1 {[%clk 0:01:30]}  Rc8 {[%clk 0:00:27]} 34. Nc7+ {[%clk 0:01:27]}  Rxc7 {[%clk 0:00:20]} 35. Bxc7 {[%clk 0:01:27]}  Nc8 {[%clk 0:00:13]} 36. Rbe1 {[%clk 0:01:05]}  Qe8 {[%clk 0:00:12]} 37. e6 {[%clk 0:01:03]}  Ne7 {[%clk 0:00:10]} 38. Bd6 {[%clk 0:01:00]}  Ng6 {[%clk 0:00:09]} 39. e7 {[%clk 0:00:59]}  Nxe7 {[%clk 0:00:08]} 40. Bxe7 {[%clk 0:00:59]}  b5 {[%clk 0:00:07]} 41. Rf8 {[%clk 0:00:59]} 1-0


[Site "https://www.chess.com"]

[Event "Titled Tuesday Blitz September 27 Early 2022"]
[White "Becerra, Juan David"]
[Black "Perez Ponsa, Federico"]
[WhiteFideId "4404998"]
[BlackFideId "117927"]
[WhiteElo "2278"]
[BlackElo "2604"]
[Result "1-0"]
[Round "03"]
[TimeControl "180+1"]
[Date "2022.09.27"]
[WhiteClock "0:00:09"]
[BlackClock "0:00:06"]

1. d4 {[%clk 0:03:00]}  Nf6 {[%clk 0:02:46]} 2. c4 {[%clk 0:03:00]}  e6 {[%clk 0:02:46]} 3. Nc3 {[%clk 0:03:00]}  Bb4 {[%clk 0:02:46]} 4. a3 {[%clk 0:03:00]}  Bxc3+ {[%clk 0:02:44]} 5. bxc3 {[%clk 0:03:01]}  c5 {[%clk 0:02:44]} 6. e3 {[%clk 0:02:56]}  Nc6 {[%clk 0:02:43]} 7. Bd3 {[%clk 0:02:55]}  b6 {[%clk 0:02:43]} 8. Nf3 {[%clk 0:02:49]}  O-O {[%clk 0:02:43]} 9. O-O {[%clk 0:02:48]}  Ba6 {[%clk 0:02:38]} 10. e4 {[%clk 0:02:48]}  Ne8 {[%clk 0:02:36]} 11. e5 {[%clk 0:02:37]}  f5 {[%clk 0:02:31]} 12. h4 {[%clk 0:02:19]}  Na5 {[%clk 0:02:26]} 13. Qe2 {[%clk 0:02:18]}  Rc8 {[%clk 0:02:25]} 14. d5 {[%clk 0:02:18]}  exd5 {[%clk 0:02:03]} 15. cxd5 {[%clk 0:02:19]}  Bxd3 {[%clk 0:02:03]} 16. Qxd3 {[%clk 0:02:19]}  d6 {[%clk 0:02:04]} 17. Bg5 {[%clk 0:02:03]}  Qc7 {[%clk 0:01:47]} 18. e6 {[%clk 0:01:58]}  h6 {[%clk 0:01:37]} 19. Bf4 {[%clk 0:01:57]}  c4 {[%clk 0:01:37]} 20. Qc2 {[%clk 0:01:40]}  Nb3 {[%clk 0:01:24]} 21. Rad1 {[%clk 0:01:23]}  Qe7 {[%clk 0:01:16]} 22. h5 {[%clk 0:01:14]}  Nf6 {[%clk 0:01:16]} 23. Nh4 {[%clk 0:01:02]}  Nxh5 {[%clk 0:00:54]} 24. Ng6 {[%clk 0:01:00]}  Qf6 {[%clk 0:00:54]} 25. Nxf8 {[%clk 0:00:56]}  Nxf4 {[%clk 0:00:53]} 26. Nd7 {[%clk 0:00:46]}  Qg5 {[%clk 0:00:40]} 27. g3 {[%clk 0:00:30]}  Qg4 {[%clk 0:00:35]} 28. Rfe1 {[%clk 0:00:21]}  Re8 {[%clk 0:00:33]} 29. Re3 {[%clk 0:00:18]}  Nh3+ {[%clk 0:00:32]} 30. Kg2 {[%clk 0:00:18]}  f4 {[%clk 0:00:32]} 31. Qe4 {[%clk 0:00:16]}  Qxd1 {[%clk 0:00:25]} 32. Qg6 {[%clk 0:00:14]}  Qxd5+ {[%clk 0:00:18]} 33. Re4 {[%clk 0:00:10]}  Re7 {[%clk 0:00:10]} 34. Nf6+ {[%clk 0:00:10]}  Kf8 {[%clk 0:00:07]} 35. Nxd5 {[%clk 0:00:10]}  Nc5 {[%clk 0:00:08]} 36. Nxe7 {[%clk 0:00:09]}  Nxe4 {[%clk 0:00:06]} 37. Qf7# {[%clk 0:00:09]} 1-0


[Site "https://www.chess.com"]